fUST/lending_fUST_20250606
["ID","MTS","AMOUNT","RATE_DAILY","PERIOD"]
[364734956,1749221471235,-958.9,0.000244,31]
[364734957,1749221471245,-958.9,0.000244,31]
[364734958,1749221471254,-958.9,0.000244,31]
[364734959,1749221471264,-958.9,0.000244,31]
[364734960,1749221471274,-2203.026,0.00024412,2]
[364734961,1749221471284,-160.0,0.00024439,3]
[364734962,1749221471294,-160.0,0.00024439,5]
[364734963,1749221471303,-200.0,0.0002444,10]
[364734964,1749221471313,-546.06,0.00024444,3]
[364734965,1749221471323,-636.12588128,0.00024462,79]
[364734966,1749221471333,-6283.98145619,0.00024492,5]
[364734967,1749221471343,-151.0,0.00024499,2]
[364734968,1749221471353,-987431.02212593,0.000245,4]
[364734969,1749221471363,-1176.0,0.000245,30]
[364734970,1749221471372,-500.0,0.000245,2]
[364734971,1749221471382,-150.0,0.000245,2]
[364734972,1749221471505,-207.0,0.000245,2]
[364734973,1749221471516,-600.0,0.000245,2]
[364734974,1749221471526,-151.0,0.00024517,7]
[364734975,1749221471536,-151.0,0.00024517,7]
[364734976,1749221471546,-151.0,0.00024517,7]
[364734977,1749221471556,-151.0,0.00024517,7]
[364734978,1749221471566,-151.0,0.00024517,7]
[364734979,1749221471576,-151.0,0.00024517,7]
[364734980,1749221471585,-151.0,0.00024517,7]
[364734981,1749221471595,-151.0,0.00024517,7]
[364734982,1749221471605,-151.0,0.00024517,7]
[364734983,1749221471614,-151.0,0.00024517,7]
[364734984,1749221471624,-151.0,0.00024517,7]
[364734985,1749221471633,-151.0,0.00024517,7]
[364734986,1749221471642,-151.0,0.00024517,7]
[364734987,1749221471652,-156.657407,0.00024517,7]
[364734988,1749221471662,-151.0,0.00024517,7]
[364734989,1749221471671,-151.0,0.00024517,7]
[364734990,1749221471681,-151.0,0.00024517,7]
[364734991,1749221471690,-151.0,0.00024517,7]
[364734992,1749221471700,-151.0,0.00024517,7]
[364734993,1749221471709,-151.0,0.00024517,7]
[364734994,1749221471719,-151.0,0.0002452,7]
[364734995,1749221471729,-151.0,0.0002452,7]
[364734996,1749221471739,-151.0,0.0002452,7]
[364734997,1749221471748,-151.0,0.0002452,7]
[364734998,1749221471758,-151.0,0.0002452,7]
[364734999,1749221471768,-151.0,0.0002452,7]
[364735000,1749221471783,-192.56948,0.0002452,7]
[364735001,1749221471792,-151.0,0.0002452,7]
[364735002,1749221471802,-151.0,0.0002452,7]
[364735003,1749221471812,-151.0,0.0002452,7]
[364735004,1749221471822,-151.0,0.0002452,7]
[364735005,1749221471832,-151.0,0.0002452,7]
[364735006,1749221471842,-151.0,0.0002452,7]
[364735007,1749221471852,-151.0,0.0002452,7]
[364735008,1749221471862,-151.0,0.0002452,7]
[364735009,1749221471873,-151.0,0.0002452,7]
[364735010,1749221471883,-297.406986,0.0002452,7]
[364735011,1749221471893,-153.0,0.00024521,2]
[364735012,1749221471902,-153.0,0.00024521,2]
[364735013,1749221471912,-153.0,0.00024521,2]
[364735014,1749221471922,-309.8421927,0.00024521,2]
[364735015,1749221471931,-353.3559936,0.00024521,2]
[364735016,1749221471941,-151.0,0.00024531,7]
[364735017,1749221471951,-151.0,0.00024531,7]
[364735018,1749221471960,-151.0,0.00024531,7]
[364735019,1749221471970,-151.0,0.00024531,7]
[364735020,1749221471979,-151.0,0.00024531,7]
[364735021,1749221471989,-252.991752,0.00024531,7]
[364735022,1749221471999,-151.0,0.00024531,7]
[364735023,1749221472008,-151.0,0.00024531,7]
[364735024,1749221472018,-151.0,0.00024531,7]
[364735025,1749221472028,-151.0,0.00024531,7]
[364735026,1749221472037,-247.8257,0.00024531,7]
[364735027,1749221472047,-151.0,0.00024531,7]
[364735028,1749221472056,-151.0,0.00024531,7]
[364735029,1749221472066,-151.0,0.00024531,7]
[364735030,1749221472075,-191.742793,0.00024531,7]
[364735031,1749221472085,-245.465958,0.00024531,7]
[364735032,1749221472094,-245.465958,0.00024531,7]
[364735033,1749221472104,-245.465958,0.00024531,7]
[364735034,1749221472114,-245.465958,0.00024531,7]
[364735035,1749221472124,-245.465958,0.00024531,7]
[364735036,1749221472133,-245.465958,0.00024531,7]
[364735037,1749221472143,-245.465958,0.00024531,7]
[364735038,1749221472152,-245.465958,0.00024531,7]
[364735039,1749221472162,-245.465958,0.00024531,7]
[364735040,1749221472171,-245.465958,0.00024531,7]
[364735041,1749221472181,-245.465958,0.00024531,7]
[364735042,1749221472190,-245.465958,0.00024531,7]
[364735043,1749221472198,-245.465958,0.00024531,7]
[364735044,1749221472207,-245.465958,0.00024531,7]
[364735045,1749221472217,-245.465958,0.00024531,7]
[364735046,1749221472225,-245.465958,0.00024531,7]
[364735047,1749221472235,-245.465958,0.00024531,7]
[364735048,1749221472245,-245.465951,0.00024531,7]
[364735049,1749221472254,-151.0,0.00024531,7]
[364735050,1749221472264,-151.0,0.00024531,7]
[364735051,1749221472274,-151.0,0.00024531,7]
[364735052,1749221472283,-151.0,0.00024531,7]
[364735053,1749221472293,-151.0,0.00024531,7]
[364735054,1749221472302,-151.0,0.00024531,7]
[364735055,1749221472311,-151.0,0.00024531,7]
[364735056,1749221472321,-151.0,0.00024531,7]
[364735057,1749221472331,-151.0,0.00024531,7]
[364735058,1749221472341,-151.0,0.00024531,7]
[364735059,1749221472350,-151.0,0.00024531,7]
[364735060,1749221472360,-151.0,0.00024531,7]
[364735061,1749221472370,-151.0,0.00024531,7]
[364735062,1749221472381,-151.0,0.00024531,7]
[364735063,1749221472392,-151.0,0.00024531,7]
[364735064,1749221472402,-151.0,0.00024531,7]
[364735065,1749221472411,-298.834266,0.00024531,7]
[364735066,1749221472420,-151.0,0.00024531,7]
[364735067,1749221472430,-151.0,0.00024531,7]
[364735068,1749221472439,-278.198717,0.00024531,7]
[364735069,1749221472448,-151.0,0.00024531,7]
[364735070,1749221472457,-151.0,0.00024531,7]
[364735071,1749221472468,-151.0,0.00024531,7]
[364735072,1749221472477,-151.0,0.00024531,7]
[364735073,1749221472487,-151.0,0.00024531,7]
[364735074,1749221472497,-151.0,0.00024531,7]
[364735075,1749221472506,-151.0,0.00024531,7]
[364735076,1749221472516,-151.0,0.00024531,7]
[364735077,1749221472525,-151.0,0.00024531,7]
[364735078,1749221472535,-151.0,0.00024531,7]
[364735079,1749221472544,-228.609482,0.00024531,7]
[364735080,1749221472554,-151.0,0.00024547,7]
[364735081,1749221472563,-151.0,0.00024547,7]
[364735082,1749221472572,-151.000001,0.00024547,7]
[364735083,1749221472581,-151.0,0.00024547,7]
[364735084,1749221472590,-151.862403,0.00024547,7]
[364735085,1749221472600,-235.704264,0.00024547,7]
[364735086,1749221472609,-235.704264,0.00024547,7]
[364735087,1749221472618,-235.704264,0.00024547,7]
[364735088,1749221472628,-235.704264,0.00024547,7]
[364735089,1749221472637,-235.704264,0.00024547,7]
[364735090,1749221472646,-235.704264,0.00024547,7]
[364735091,1749221472655,-235.704264,0.00024547,7]
[364735092,1749221472664,-235.704264,0.00024547,7]
[364735093,1749221472674,-235.704264,0.00024547,7]
[364735094,1749221472683,-235.704264,0.00024547,7]
[364735095,1749221472693,-235.704264,0.00024547,7]
[364735096,1749221472702,-235.704264,0.00024547,7]
[364735097,1749221472711,-235.704264,0.00024547,7]
[364735098,1749221472720,-235.704264,0.00024547,7]
[364735099,1749221472730,-235.704264,0.00024547,7]
[364735100,1749221472739,-235.704264,0.00024547,7]
[364735101,1749221472748,-235.704264,0.00024547,7]
[364735102,1749221472758,-235.704264,0.00024547,7]
[364735103,1749221472767,-235.704264,0.00024547,7]
[364735104,1749221472776,-235.704255,0.00024547,7]
[364735105,1749221472790,-151.0,0.00024547,7]
[364735106,1749221472799,-151.0,0.00024547,7]
[364735107,1749221472808,-151.0,0.00024547,7]
[364735108,1749221472817,-151.0,0.00024547,7]
[364735109,1749221472829,-151.0,0.00024547,7]
[364735110,1749221472838,-151.0,0.00024547,7]
[364735111,1749221472847,-151.0,0.00024547,7]
[364735112,1749221472859,-151.0,0.00024547,7]
[364735113,1749221472867,-151.0,0.00024547,7]
[364735114,1749221472877,-151.0,0.00024547,7]
[364735115,1749221472887,-151.0,0.00024547,7]
[364735116,1749221472896,-151.0,0.00024547,7]
[364735117,1749221472906,-160.344242,0.00024547,7]
[364735118,1749221472915,-151.0,0.00024547,7]
[364735119,1749221472925,-151.0,0.00024547,7]
[364735120,1749221472935,-159.158105,0.00024549,7]
[364735121,1749221472946,-5100.6586578,0.00024555,11]
[364735122,1749221472955,-195.550313,0.00024562,7]
[364735123,1749221472965,-195.550313,0.00024562,7]
[364735124,1749221472974,-195.550313,0.00024562,7]
[364735125,1749221472983,-195.550313,0.00024562,7]
[364735126,1749221472992,-195.550313,0.00024562,7]
[364735127,1749221473002,-195.550313,0.00024562,7]
[364735128,1749221473011,-195.550313,0.00024562,7]
[364735129,1749221473021,-195.550313,0.00024562,7]
[364735130,1749221473031,-195.550313,0.00024562,7]
[364735131,1749221473040,-195.550307,0.00024562,7]
[364735132,1749221473049,-151.0,0.00024562,7]
[364735133,1749221473058,-151.0,0.00024562,7]
[364735134,1749221473068,-151.0,0.00024562,7]
[364735135,1749221473080,-151.0,0.00024562,7]
[364735136,1749221473090,-530.415545,0.00024562,2]
[364735137,1749221473099,-530.415545,0.00024562,2]
[364735138,1749221473108,-156.828018,0.00024562,7]
[364735139,1749221473118,-530.415545,0.00024562,2]
[364735140,1749221473128,-156.828018,0.00024562,7]
[364735141,1749221473137,-530.415545,0.00024562,2]
[364735142,1749221473146,-156.828018,0.00024562,7]
[364735143,1749221473156,-156.828018,0.00024562,7]
[364735144,1749221473165,-156.828018,0.00024562,7]
[364735145,1749221473174,-530.415545,0.00024562,2]
[364735146,1749221473184,-530.415545,0.00024562,2]
[364735147,1749221473193,-530.415545,0.00024562,2]
[364735148,1749221473203,-530.41553776,0.00024562,2]
[364735149,1749221473214,-156.828018,0.00024562,7]
[364735150,1749221473223,-156.828018,0.00024562,7]
[364735151,1749221473232,-156.828018,0.00024562,7]
[364735152,1749221473242,-156.828018,0.00024562,7]
[364735153,1749221473251,-156.828018,0.00024562,7]
[364735154,1749221473260,-192.353307,0.00024562,7]
[364735155,1749221473269,-192.353307,0.00024562,7]
[364735156,1749221473277,-192.353307,0.00024562,7]
[364735157,1749221473286,-192.353307,0.00024562,7]
[364735158,1749221473294,-192.353307,0.00024562,7]
[364735159,1749221473302,-192.353307,0.00024562,7]
[364735160,1749221473310,-192.353307,0.00024562,7]
[364735161,1749221473318,-192.353302,0.00024562,7]
[364735162,1749221473327,-151.0,0.00024562,7]
[364735163,1749221473336,-151.0,0.00024562,7]
[364735164,1749221473347,-151.0,0.00024562,7]
[364735165,1749221473357,-151.0,0.00024562,7]
[364735166,1749221473366,-151.0,0.00024562,7]
[364735167,1749221473376,-5000.0,0.00024581,2]
[364735168,1749221473385,-357158.05739956,0.00024598,20]
[364735169,1749221473555,587.7,0.00024658,120]
[364735170,1749221474185,300.0,0.00018232,2]
[364735171,1749221474619,168.0,0.00016438,3]
[364735172,1749221480629,198.18607299,0.00018603,2]
[364735174,1749221540129,5432.89322241,0.000245,120]
[364735175,1749221544124,-150.0,0.00019058,2]
[364735176,1749221544146,-255.70765073,0.00019074,2]
[364735177,1749221544171,-200.97690194,0.00019078,2]
[364735178,1749221544196,-300.0,0.00019173,2]
[364735179,1749221544221,-500.0,0.00019174,2]
[364735180,1749221544245,-500.0,0.00019174,2]
[364735181,1749221544272,-500.0,0.00019174,2]
[364735182,1749221544296,-500.0,0.00019174,2]
[364735183,1749221544319,-303.91657503,0.00019174,2]
[364735184,1749221544342,-500.0,0.00019174,2]
[364735185,1749221544365,-500.0,0.00019174,2]
[364735186,1749221544388,-500.0,0.00019174,2]
[364735187,1749221544412,-500.0,0.00019174,2]
[364735188,1749221544435,-500.0,0.00019174,2]
[364735189,1749221544458,-500.0,0.00019174,2]
[364735190,1749221544483,-500.0,0.00019174,2]
[364735191,1749221544505,-302.62365524,0.00019174,2]
[364735192,1749221544529,-440.0,0.00019178,2]
[364735193,1749221544550,-427.27,0.00019178,2]
[364735194,1749221544572,-440.0,0.00019178,2]
[364735195,1749221544594,-420.0,0.00019178,2]
[364735196,1749221544616,-440.0,0.00019178,2]
[364735197,1749221544640,-440.0,0.00019178,2]
[364735198,1749221544663,-440.0,0.00019178,2]
[364735199,1749221544688,-500.0,0.00019178,2]
[364735200,1749221544711,-500.0,0.00019178,2]
[364735201,1749221544734,-500.0,0.00019178,2]
[364735202,1749221544756,-420.0,0.00019178,2]
[364735203,1749221544779,-500.0,0.00019178,2]
[364735204,1749221544803,-500.0,0.00019178,2]
[364735205,1749221544829,-440.0,0.00019178,2]
[364735206,1749221544852,-554.41,0.00019178,2]
[364735207,1749221544873,-440.0,0.00019178,2]
[364735208,1749221544897,-440.0,0.00019178,2]
[364735209,1749221544919,-440.0,0.00019178,2]
[364735210,1749221544942,-440.0,0.00019178,2]
[364735211,1749221544964,-440.0,0.00019178,2]
[364735212,1749221544988,-390.39084991,0.00019178,2]
[364735213,1749221545010,-440.0,0.00019178,2]
[364735214,1749221545033,-440.0,0.00019178,2]
[364735215,1749221545058,-440.0,0.00019178,2]
[364735216,1749221545080,-440.0,0.00019178,2]
[364735217,1749221545103,-440.0,0.00019178,2]
[364735218,1749221545125,-440.0,0.00019178,2]
[364735219,1749221545146,-440.0,0.00019178,2]
[364735220,1749221545167,-544.43294486,0.00019178,2]
[364735221,1749221545191,-440.0,0.00019178,2]
[364735222,1749221545213,-440.0,0.00019178,2]
[364735223,1749221545236,-440.0,0.00019178,2]
[364735224,1749221545259,-440.0,0.00019178,2]
[364735225,1749221545284,-442.22616126,0.00019178,2]
[364735226,1749221545306,-550.46520693,0.00019178,2]
[364735227,1749221545328,-440.0,0.00019178,2]
[364735228,1749221545352,-440.0,0.00019178,2]
[364735229,1749221545375,-440.0,0.00019178,2]
[364735230,1749221545397,-344.38888451,0.00019178,2]
[364735231,1749221545423,-440.0,0.00019178,2]
[364735232,1749221545451,-1113.77,0.00019178,2]
[364735233,1749221545477,-440.0,0.00019178,2]
[364735234,1749221545499,-440.0,0.00019178,2]
[364735235,1749221545523,-500.76372576,0.00019178,2]
[364735236,1749221545544,-514.75936249,0.00019178,2]
[364735237,1749221545697,-440.0,0.00019178,2]
[364735238,1749221545719,-440.0,0.00019178,2]
[364735239,1749221545741,-230.0,0.00019178,2]
[364735240,1749221545763,-440.0,0.00019178,2]
[364735241,1749221545786,-440.0,0.00019178,2]
[364735242,1749221545806,-431.67809199,0.00019178,2]
[364735243,1749221545834,-440.0,0.00019178,2]
[364735244,1749221545859,-1083.15,0.00019178,2]
[364735245,1749221545889,-440.0,0.00019178,2]
[364735246,1749221545912,-440.0,0.00019178,2]
[364735247,1749221545934,-430.0,0.00019178,2]
[364735248,1749221545958,-440.0,0.00019178,2]
[364735249,1749221545979,-440.0,0.00019178,2]
[364735250,1749221546001,-440.0,0.00019178,2]
[364735251,1749221546023,-440.0,0.00019178,2]
[364735252,1749221546044,-440.0,0.00019178,2]
[364735253,1749221546065,-552.88988457,0.00019178,2]
[364735254,1749221546086,-440.0,0.00019178,2]
[364735255,1749221546110,-999.23,0.00019178,2]
[364735256,1749221546132,-440.0,0.00019178,2]
[364735257,1749221546155,-440.0,0.00019178,2]
[364735258,1749221546179,-446.72,0.00019178,2]
[364735259,1749221546201,-440.0,0.00019178,2]
[364735260,1749221546224,-440.0,0.00019178,2]
[364735261,1749221546247,-440.0,0.00019178,2]
[364735262,1749221546268,-440.0,0.00019178,2]
[364735263,1749221546297,-440.0,0.00019178,2]
[364735264,1749221546319,-440.0,0.00019178,2]
[364735265,1749221546341,-430.0,0.00019178,2]
[364735266,1749221546364,-440.0,0.00019178,2]
[364735267,1749221546387,-259.53657584,0.00019178,2]
[364735268,1749221546410,-440.0,0.00019178,2]
[364735269,1749221546433,-440.0,0.00019178,2]
[364735270,1749221546455,-430.0,0.00019178,2]
[364735271,1749221546477,-440.0,0.00019178,2]
[364735272,1749221546500,-440.0,0.00019178,2]
[364735273,1749221546524,-440.0,0.00019178,2]
[364735274,1749221546548,-440.0,0.00019452,2]
[364735275,1749221546570,-440.0,0.00019452,2]
[364735276,1749221546595,-440.0,0.00019452,2]
[364735277,1749221546617,-440.0,0.00019452,2]
[364735278,1749221546641,-440.0,0.00019452,2]
[364735279,1749221546663,-287.69352894,0.00019452,2]
[364735280,1749221561816,150.0,0.00017966,2]
[364735281,1749221562224,153.63,0.00018821,2]
[364735282,1749221564864,7610.86641494,0.00018848,2]
[364735283,1749221564890,17289.13358506,0.00018848,2]
[364735284,1749221642670,150.0,0.00017929,2]
[364735285,1749221643081,150.0,0.00018783,2]
[364735286,1749221721747,163.04,0.00024658,120]
[364735287,1749221722819,150.0,0.00017937,2]
[364735288,1749221723254,150.0,0.00018791,2]
[364735289,1749221801162,150.0,0.00017938,2]
[364735290,1749221801585,150.0,0.00018793,2]
[364735292,1749221877010,150.0,0.00017938,2]
[364735293,1749221877469,150.0,0.00018792,2]
[364735294,1749221952669,150.0,0.00017962,2]
[364735295,1749221953169,150.0,0.00018817,2]
[364735296,1749221954056,168.8520601,0.00018657,2]
[364735297,1749221978489,60.66815484,0.0001899,2]
[364735298,1749221978513,9756.36184516,0.0001899,2]
[364735299,1749222027443,150.0,0.00017974,2]
[364735300,1749222028015,150.0,0.0001883,2]
[364735302,1749222059469,239.563787,0.00013699,2]
[364735303,1749222072327,531.4967644,0.00018315,2]
[364735304,1749222083563,157.69521078,0.00018977,3]
[364735305,1749222087404,671.770544,0.00018315,2]
[364735306,1749222104146,150.0,0.00017975,2]
[364735307,1749222104591,150.0,0.00018831,2]
[364735308,1749222181285,150.0,0.00017951,2]
[364735309,1749222181738,150.0,0.00018805,2]
[364735310,1749222249328,347.1527944,0.00018435,2]
[364735311,1749222259969,150.0,0.00018124,2]
[364735312,1749222260421,150.0,0.00018987,2]
[364735314,1749222337596,150.0,0.00017974,2]
[364735315,1749222338021,150.0,0.0001883,2]
[364735316,1749222364028,229.03511887,0.00018978,2]
[364735317,1749222377396,151.0,0.00019,2]
[364735318,1749222384990,633.2867016,0.00018176,2]
[364735319,1749222414347,150.0,0.00018168,2]
[364735320,1749222425128,-150.0,0.00019033,2]
[364735321,1749222425152,-164.90024098,0.00019077,2]
[364735322,1749222425177,-293.77507321,0.00019077,2]
[364735323,1749222425200,-467.29981813,0.00019078,2]
[364735324,1749222425223,-222.13,0.00019168,3]
[364735325,1749222425244,-503.8046251,0.00019173,2]
[364735326,1749222425266,-300.0,0.00019177,2]
[364735327,1749222425288,-473.0,0.00019177,2]
[364735328,1749222425312,-300.0,0.00019177,2]
[364735329,1749222425333,-300.0,0.00019177,2]
[364735330,1749222425355,-300.0,0.00019177,2]
[364735331,1749222425380,-533.76850834,0.00019177,2]
[364735332,1749222425404,-367.01542089,0.00019178,2]
[364735333,1749222425427,-440.0,0.00019178,2]
[364735334,1749222425451,-265.01233475,0.00019178,2]
[364735335,1749222443117,-174.98766525,0.00019178,2]
[364735336,1749222443141,-440.0,0.00019178,2]
[364735337,1749222443166,-430.0,0.00019178,2]
[364735338,1749222443190,-440.0,0.00019178,2]
[364735339,1749222443211,-440.0,0.00019178,2]
[364735340,1749222443234,-440.0,0.00019178,2]
[364735341,1749222443256,-440.0,0.00019178,2]
[364735342,1749222443279,-440.0,0.00019178,2]
[364735343,1749222443301,-430.0,0.00019178,2]
[364735344,1749222443326,-440.0,0.00019178,2]
[364735345,1749222443348,-440.0,0.00019178,2]
[364735346,1749222443370,-440.0,0.00019178,2]
[364735347,1749222443392,-188.96360769,0.00019178,2]
[364735348,1749222443430,-161.40373709,0.00019178,2]
[364735349,1749222443453,-440.0,0.00019178,2]
[364735350,1749222443474,-376.54163954,0.00019178,2]
[364735351,1749222443495,-12.10506233,0.00019178,2]
[364735352,1749222488842,150.0,0.00018013,2]
[364735353,1749222489329,150.0,0.00018871,2]
[364735356,1749222511577,559.87592803,0.000189,2]
[364735361,1749222562967,150.0,0.00018002,2]
[364735362,1749222563406,150.0,0.0001886,2]
[364735365,1749222622359,373.25061869,0.000189,2]
[364735456,1749222639091,-408.88734082,0.00019078,2]
[364735457,1749222639101,-160.0,0.00019177,2]
[364735458,1749222639111,-300.0,0.00019177,2]
[364735459,1749222639120,-300.0,0.00019177,2]
[364735460,1749222639130,-1200.0,0.00019177,2]
[364735461,1749222639139,-441.38726579,0.00019178,2]
[364735462,1749222639148,-430.1370029,0.00019178,2]
[364735463,1749222639159,-430.0,0.00019178,2]
[364735465,1749222639177,-440.0,0.00019178,2]
[364735466,1749222639187,-430.0,0.00019178,2]
[364735467,1749222639196,-440.0,0.00019178,2]
[364735468,1749222639205,-440.0,0.00019178,2]
[364735469,1749222639216,-443.55693185,0.00019178,2]
[364735470,1749222639226,-440.0,0.00019178,2]
[364735471,1749222639236,-440.0,0.00019178,2]
[364735472,1749222639246,-430.0,0.00019178,2]
[364735473,1749222639255,-440.0,0.00019178,2]
[364735474,1749222639264,-430.0,0.00019178,2]
[364735475,1749222639273,-414.00149886,0.00019178,2]
[364735476,1749222639282,-430.0,0.00019178,2]
[364735477,1749222639291,-430.0,0.00019178,2]
[364735478,1749222639300,-440.0,0.00019178,2]
[364735479,1749222639309,-210.96226806,0.00019178,2]
[364735480,1749222639318,-495.1144221,0.00019178,2]
[364735481,1749222639327,-440.0,0.00019178,2]
[364735482,1749222639338,-440.0,0.00019178,2]
[364735483,1749222639346,-440.0,0.00019178,2]
[364735484,1749222639356,-440.0,0.00019178,2]
[364735485,1749222639365,-440.0,0.00019178,2]
[364735486,1749222639375,-430.0,0.00019178,2]
[364735487,1749222639384,-375.77129826,0.00019178,2]
[364735488,1749222639393,-430.0,0.00019178,2]
[364735489,1749222639403,-440.0,0.00019178,2]
[364735490,1749222639412,-440.0,0.00019178,2]
[364735491,1749222639421,-440.0,0.00019178,2]
[364735492,1749222639430,-440.0,0.00019178,2]
[364735493,1749222639439,-440.0,0.00019178,2]
[364735494,1749222639448,-430.0,0.00019178,2]
[364735495,1749222639457,-440.0,0.00019178,2]
[364735496,1749222639466,-440.0,0.00019178,2]
[364735497,1749222639476,-440.0,0.00019178,2]
[364735498,1749222639485,-430.0,0.00019178,2]
[364735499,1749222639494,-430.0,0.00019178,2]
[364735500,1749222639503,-430.0,0.00019178,2]
[364735501,1749222639513,-440.0,0.00019178,2]
[364735502,1749222639521,-248.34,0.00019178,2]
[364735503,1749222639531,-440.0,0.00019178,2]
[364735504,1749222639541,-440.0,0.00019178,2]
[364735505,1749222639550,-400.0,0.00019178,2]
[364735506,1749222639559,-430.0,0.00019178,2]
[364735507,1749222639568,-430.0,0.00019178,2]
[364735508,1749222639577,-440.0,0.00019178,2]
[364735509,1749222639586,-440.0,0.00019178,2]
[364735510,1749222639595,-440.0,0.00019178,2]
[364735511,1749222639604,-430.0,0.00019178,2]
[364735512,1749222639613,-430.0,0.00019178,2]
[364735513,1749222639622,-440.0,0.00019178,2]
[364735514,1749222639631,-440.0,0.00019178,2]
[364735515,1749222639640,-223.50757008,0.00019178,2]
[364735516,1749222639650,-440.0,0.00019178,2]
[364735517,1749222639659,-440.0,0.00019178,2]
[364735518,1749222639669,-440.0,0.00019178,2]
[364735519,1749222639678,-440.0,0.00019178,2]
[364735520,1749222639687,-404.04356514,0.00019178,2]
[364735521,1749222639696,-440.0,0.00019178,2]
[364735522,1749222639706,-345.8727525,0.00019178,2]
[364735523,1749222639715,-430.0,0.00019178,2]
[364735524,1749222639725,-358.46152586,0.00019178,2]
[364735525,1749222639734,-430.0,0.00019178,2]
[364735526,1749222639744,-440.0,0.00019178,2]
[364735527,1749222639753,-430.0,0.00019178,2]
[364735528,1749222639763,-580.93746372,0.00019178,2]
[364735529,1749222639772,-430.0,0.00019178,2]
[364735530,1749222639782,-410.0,0.00019178,2]
[364735531,1749222639792,-440.0,0.00019178,2]
[364735532,1749222639802,-440.0,0.00019178,2]
[364735533,1749222639811,-404.32445089,0.00019178,2]
[364735534,1749222639821,-440.0,0.00019178,2]
[364735535,1749222639831,-440.0,0.00019178,2]
[364735536,1749222639840,-440.0,0.00019178,2]
[364735537,1749222639849,-440.0,0.00019178,2]
[364735538,1749222639859,-440.0,0.00019178,2]
[364735539,1749222639868,-494.42079598,0.00019178,2]
[364735540,1749222639878,-430.0,0.00019178,2]
[364735541,1749222639887,-440.0,0.00019178,2]
[364735542,1749222639896,-440.0,0.00019178,2]
[364735544,1749222639906,-234.3847957,0.00019178,2]
[364735545,1749222639916,-440.0,0.00019178,2]
[364735546,1749222639926,-440.0,0.00019178,2]
[364735547,1749222639935,-390.0,0.00019178,2]
[364735548,1749222639945,-400.0,0.00019178,2]
[364735549,1749222639954,-440.0,0.00019178,2]
[364735551,1749222639964,-330.0,0.00019178,2]
[364735552,1749222639976,-440.0,0.00019178,2]
[364735554,1749222639987,-440.0,0.00019178,2]
[364735555,1749222639996,-440.0,0.00019178,2]
[364735556,1749222640006,-440.0,0.00019178,2]
[364735557,1749222640015,-440.0,0.00019178,2]
[364735558,1749222640025,-500.0,0.00019178,2]
[364735559,1749222640035,-500.0,0.00019178,2]
[364735560,1749222640045,-440.0,0.00019178,2]
[364735561,1749222640054,-440.0,0.00019178,2]